bitfinex/quotes_ETHUSD_20250404
["timestamp","ask_amount","ask_price","bid_price","bid_amount"]
[1743765679826,1.6073,1778.8,1778.2,5.62366]
[1743765680137,6.104,1778.7,1778.5,5.62255]
[1743765680291,6.104,1778.7,1778.4,5.62299]
[1743765680496,6.104,1778.7,1778.4,6.185289]
[1743765680734,11.7262,1778.7,1778.4,0.562299]
[1743765681235,5.62253,1778.6,1778.4,0.562299]
[1743765681397,6.104,1778.7,1778.5,7.24428]
[1743765682096,6.104,1778.7,1778.5,1.6216]
[1743765683428,11.72619,1778.7,1778.4,7.2085]
[1743765683629,6.104,1778.7,1778.4,12.83139]
[1743765683830,11.7261,1778.7,1778.4,7.20849]
[1743765684027,11.7261,1778.7,1778.4,8.491673]
[1743765684519,11.7261,1778.7,1778.4,2.868783]
[1743765684728,17.34838,1778.7,1778.3,5.6232]
[1743765685024,7.82712,1778.6,1778.2,1.5001]
[1743765685228,5.62282,1778.5,1778.1,5.67394]
[1743765685429,5.62282,1778.5,1778.2,5.6236]
[1743765685618,5.62282,1778.5,1778.2,5.62359]
[1743765685931,13.44971,1778.6,1778.2,5.62351]
[1743765686231,5.62272,1778.5,1778.2,5.62351]
[1743765686997,5.62272,1778.5,1778.1,5.67397]
[1743765687199,5.62315,1778.4,1778.1,5.67397]
[1743765687405,11.24638,1778.4,1778.1,0.05]
[1743765687725,11.24638,1778.4,1778.1,5.67396]
[1743765687726,5.62315,1778.4,1778.1,5.67396]
[1743765687918,6.104,1778.3,1778.1,5.67382]
[1743765689204,6.104,1778.3,1778.2,5.62366]
[1743765689530,6.104,1778.6,1778.2,1.5969]
[1743765689726,6.104,1778.6,1778.5,5.62271]
[1743765689927,6.104,1778.6,1778.2,1.5969]
[1743765690104,11.7267,1778.6,1778.2,7.2203]
[1743765690311,11.7267,1778.6,1778.3,5.62322]
[1743765690630,5.62212,1778.7,1778.3,6.907692]
[1743765690932,6.104,1778.6,1778.4,11.24567]
[1743765691124,6.104,1778.6,1778.4,5.62279]
[1743765691375,6.104,1778.6,1778.5,5.62271]
[1743765692101,6.104,1778.6,1778.4,11.24571]
[1743765692300,6.104,1778.6,1778.4,5.62279]
[1743765692513,6.104,1778.6,1778.3,11.24649]
[1743765692804,5.62309,1778.4,1778.1,0.05]
[1743765693003,5.62309,1778.4,1778.1,5.67385]
[1743765693204,5.62309,1778.4,1778.1,11.2977]
[1743765693430,5.62309,1778.4,1778.1,5.67385]
[1743765694030,5.62309,1778.4,1778.1,11.29767]
[1743765694229,5.62341,1778.3,1778.1,0.05]
[1743765694431,6.103,1778.2,1778.1,0.05]
[1743765694813,13.79886,1778.2,1778.1,0.05]
[1743765695009,16.79886,1778.2,1778.1,0.05]
[1743765695234,17.21232747,1778.2,1778.1,0.05]
[1743765695433,5.6257,1777.6,1777.3,1.6247]
[1743765695614,6.17606,1777.5,1777.1,12.92876]
[1743765695814,11.80214,1777.5,1777.1,7.30173]
[1743765696028,11.80214,1777.5,1777.1,12.92876]
[1743765696029,6.17606,1777.5,1777.1,12.92876]
[1743765696246,5.62638,1777.4,1777.1,0.05]
[1743765696540,5.62668,1777.3,1777.1,0.05]
[1743765696705,11.72982,1777.2,1777.1,0.05]
[1743765696903,12.27982,1777.2,1777.1,0.05]
[1743765697124,16.91272,1777.2,1777.1,0.05]
[1743765697332,22.97272,1777.2,1777.1,0.05]
[1743765697534,20.68729428,1777.2,1777.1,0.05]
[1743765697731,26.79029428,1777.2,1777.1,1e-05]
[1743765699024,27.21448296,1777.2,1777.1,1e-05]
[1743765699706,9.17746,1777.0,1776.4,0.15377]
[1743765699911,6.17904,1776.5,1776.4,0.15377]
[1743765700106,7.2916,1776.8,1776.4,5.78282]
[1743765700336,7.2916,1776.8,1776.5,1.5868]
[1743765700337,6.104,1776.8,1776.5,1.5868]
[1743765700641,6.104,1776.8,1776.7,5.62841]
[1743765700804,0.08931531,1776.9,1776.8,5.62809]
[1743765701008,12.16399,1777.5,1777.3,5.62639]
[1743765701207,12.16399,1777.5,1777.2,5.62673]
[1743765701538,12.16399,1777.5,1777.3,5.62622]
[1743765701745,12.16399,1777.5,1777.3,7.19742]
[1743765701931,12.16399,1777.5,1777.3,12.82374]
[1743765702143,6.104,1777.5,1777.3,7.19742]
[1743765702440,17.79002,1777.8,1777.4,5.62619]
[1743765702623,5.62545,1777.7,1777.3,7.19742]
[1743765702948,5.6259,1777.5,1777.1,7.29013]
[1743765703117,11.7312,1777.4,1777.0,5.62717]
[1743765703316,5.62704,1777.2,1776.8,14.04481]
[1743765703518,5.62718,1777.1,1776.8,2.78865]
[1743765703866,5.62718,1777.1,1776.7,5.62834]
[1743765704054,5.62718,1777.1,1776.7,5.62829]
[1743765704349,0.55,1777.1,1776.8,5.62796]
[1743765704648,6.105,1777.0,1776.8,11.25589]
[1743765704845,0.55,1777.1,1776.9,5.62777]
[1743765705047,6.105,1777.1,1776.9,5.62761]
[1743765705213,6.105,1777.1,1776.8,11.25604]
[1743765705418,6.105,1777.1,1776.9,5.62773]
[1743765705744,6.105,1777.1,1777.0,5.62746]
[1743765706314,6.105,1777.1,1777.0,7.21446]
[1743765707244,12.25426852,1777.4,1777.2,5.6268]
[1743765707649,12.25426852,1777.4,1777.1,5.62704]
[1743765707821,17.88048852,1777.4,1777.1,5.62704]
[1743765708223,17.88048852,1777.4,1777.0,7.21446]
[1743765708445,17.88048852,1777.4,1777.0,7.2143]
[1743765708641,17.88048852,1777.4,1777.0,12.8416]
[1743765708840,23.50694852,1777.4,1777.0,7.2143]
[1743765709052,17.88048852,1777.4,1777.0,7.2143]
[1743765709231,23.50690852,1777.4,1777.0,7.2143]
[1743765709435,6.17663,1777.3,1776.9,5.62764]
[1743765709850,6.17663,1777.3,1776.9,11.25526]
[1743765710053,0.55,1777.3,1777.1,5.62701]
[1743765710628,6.17651,1777.3,1777.0,5.62746]
[1743765711124,6.17651,1777.3,1776.9,5.62776]
[1743765711125,11.8032,1777.3,1776.9,5.62776]
[1743765711325,11.8032,1777.3,1776.9,11.25538]
[1743765711556,6.17651,1777.3,1776.9,5.62762]
[1743765711753,11.80322,1777.3,1776.9,5.62761]
[1743765712073,17.88048852,1777.4,1777.0,5.62728]
[1743765712247,12.25426852,1777.4,1776.6,5.62869]
[1743765712454,17.88063852,1777.4,1777.0,6.43742]
[1743765712629,23.50706852,1777.4,1777.0,6.43742]
[1743765712965,17.88063852,1777.4,1777.0,6.4374]
[1743765713131,12.25426852,1777.4,1777.1,5.62695]
[1743765713330,12.25426852,1777.4,1777.1,11.25398]
[1743765713872,12.25326852,1777.4,1777.3,5.62651]
[1743765714066,12.25326852,1777.4,1777.2,5.62669]
[1743765714367,0.08927852,1777.4,1777.3,5.62651]
[1743765714567,6.104,1777.6,1777.4,5.62603]
[1743765714768,6.104,1777.6,1777.4,6.49829109]
[1743765715067,12.16399,1777.8,1777.5,5.62572]
[1743765715763,17.78893,1777.8,1777.5,5.62572]
[1743765716060,17.78893,1777.8,1777.4,12.06826]
[1743765716379,17.78893,1777.8,1777.5,5.62586]
[1743765716954,12.16399,1777.8,1777.5,5.62577]
[1743765717159,12.16399,1777.8,1777.5,11.25153]
[1743765717363,12.16399,1777.8,1777.4,0.816]
[1743765717544,12.16399,1777.8,1777.6,5.62542]
[1743765717960,12.16399,1777.8,1777.5,11.25174]
[1743765718167,12.16399,1777.8,1777.6,5.62542]
[1743765718341,12.16399,1777.8,1777.5,11.25174]
[1743765718943,12.16399,1777.8,1777.5,5.62587]
[1743765719560,12.16399,1777.8,1777.6,5.62537]
[1743765719758,12.16399,1777.8,1777.7,5.62524]
[1743765719933,6.05999,1777.8,1777.7,6.750301]
[1743765720370,6.05999,1777.8,1777.6,5.62537]
[1743765720534,6.05999,1777.8,1777.2,0.7527]
[1743765720742,11.25082,1777.7,1777.3,5.6263]
[1743765720940,5.62614,1777.5,1777.0,1.39644]
[1743765721272,5.62614,1777.5,1777.1,11.25404]
[1743765721273,17.35419,1777.5,1777.1,11.25404]
[1743765721571,17.35392,1777.5,1777.0,0.7527]
[1743765721738,11.72792,1777.5,1777.2,5.62667]
[1743765721943,5.62636,1777.4,1777.0,6.38002]
[1743765722144,0.55,1777.4,1776.9,5.62763]
[1743765722342,6.17697,1777.2,1776.9,5.62772]
[1743765722564,0.55,1777.2,1776.8,0.7873]
[1743765722759,5.62757,1777.0,1776.6,6.3795]
[1743765722959,5.62801,1776.9,1776.5,11.25777]
[1743765723269,11.7284,1777.1,1776.7,5.62831]
[1743765723445,5.62778,1776.9,1776.6,5.62868]
[1743765723645,0.42146013,1777.0,1776.4,0.15377]
[1743765723843,5.62904,1776.5,1776.4,0.15377]
[1743765724042,12.28004,1776.5,1776.4,0.15377]
[1743765724456,19.15066118,1776.5,1776.4,0.15377]
[1743765725649,6.35129,1776.2,1776.1,0.05]
[1743765725859,9.99067331,1776.2,1776.1,0.05]
[1743765727292,41.36166331,1776.2,1776.1,0.05]
[1743765727861,41.36166331,1776.2,1776.1,1e-05]
[1743765730246,41.36166331,1776.2,1775.1,0.8328]
[1743765730247,5.63298,1775.3,1775.1,0.05]
[1743765730489,6.102,1775.2,1775.1,0.05]
[1743765730701,6.102,1775.2,1775.1,5.68348]
[1743765730901,6.102,1775.9,1775.5,0.7596]
[1743765731048,6.102,1775.9,1775.8,5.63122]
[1743765731246,6.102,1776.2,1776.0,5.6305]
[1743765731882,6.102,1776.2,1775.9,6.38576]
[1743765732063,6.102,1776.2,1775.9,12.01656]
[1743765732261,6.35069,1776.4,1776.0,5.63042]
[1743765732491,6.103,1776.3,1776.2,5.62999]
[1743765732649,6.103,1776.3,1776.0,5.63061]
[1743765732848,6.103,1776.3,1776.1,5.63021]
[1743765733086,11.73278,1776.3,1775.9,7.587446]
[1743765733447,11.73278,1776.3,1776.0,5.63057]
[1743765733650,6.103,1776.3,1776.0,5.63055]
[1743765733851,6.103,1776.3,1776.0,5.63051]
[1743765734051,11.73278,1776.3,1776.0,5.63051]
[1743765734252,11.73278,1776.3,1775.9,13.218266]
[1743765734451,6.103,1776.3,1776.0,6.9522966]
[1743765734780,6.103,1776.3,1776.1,5.63021]
[1743765734982,6.103,1776.3,1776.2,5.62999]
[1743765735182,6.103,1776.3,1776.1,5.63013]
[1743765735382,6.103,1776.3,1776.1,11.26028]
[1743765735683,6.103,1776.3,1776.1,5.63013]
[1743765735846,6.103,1776.3,1776.2,6.193003]
[1743765736251,6.103,1776.3,1776.1,5.63013]
[1743765737785,11.26083,1776.1,1775.7,6.38364]
[1743765737986,11.26087,1776.1,1775.7,6.38363]
[1743765738187,5.63033,1776.1,1775.7,6.38363]
[1743765738563,5.63033,1776.1,1775.7,12.01506]
[1743765738775,0.55,1776.1,1775.7,0.7522]
[1743765738967,0.55,1776.1,1775.8,11.26217]
[1743765739285,0.55,1776.2,1775.9,5.63075]
[1743765739590,6.102,1776.2,1776.1,5.6302]
[1743765739785,0.0997711,1776.3,1776.1,5.6302]
[1743765740148,0.0997711,1776.3,1776.0,11.26105]
[1743765740375,0.0997711,1776.3,1775.8,1.201437]
[1743765740376,0.0997711,1776.3,1776.1,5.63029]
[1743765740581,0.0997711,1776.3,1776.2,5.62999]
[1743765741176,0.0997711,1776.3,1776.2,6.832]
[1743765741488,6.102,1776.4,1776.3,5.62967]
[1743765741676,6.102,1776.4,1776.2,5.62999]
[1743765741876,6.05998,1776.6,1776.2,6.05443706]
[1743765742078,6.102,1776.8,1776.5,5.62891]
[1743765742475,11.73028,1776.8,1776.4,5.62923]
[1743765742685,6.1785,1776.7,1776.4,5.62923]
[1743765742998,6.102,1776.8,1776.5,5.6289]
[1743765743154,11.73009,1776.8,1776.5,5.6289]
[1743765743359,6.17852,1776.7,1776.3,6.39121]
[1743765743663,6.05998,1776.6,1775.9,0.7733]
[1743765743880,0.55,1776.1,1775.8,11.26239]
[1743765744084,6.651,1776.1,1775.8,11.26225]
[1743765744282,6.651,1776.1,1775.7,10.806]
[1743765744283,12.71098,1776.1,1775.7,0.806]
[1743765744458,12.71098,1776.1,1775.8,5.63114]
[1743765744986,0.55,1776.0,1775.8,11.26229]
[1743765745174,12.16098,1776.1,1775.9,5.63076]
[1743765745378,12.16098,1776.1,1776.0,5.63063]
[1743765745973,12.16098,1776.1,1776.0,6.45113]
[1743765747291,12.16098,1776.1,1775.9,5.63076]
[1743765747489,12.16098,1776.1,1776.0,5.63063]
[1743765747661,0.08457874,1776.5,1776.4,5.62936]
[1743765748174,6.05998,1776.7,1776.4,6.39095]
[1743765748369,11.6884,1776.7,1776.4,6.39095]
[1743765748575,6.05998,1776.7,1776.5,5.62882]
[1743765748784,11.68849,1776.7,1776.4,6.391]
[1743765748980,6.05998,1776.7,1776.4,6.39092]
[1743765749292,6.05998,1776.7,1776.5,11.2578]
[1743765749469,6.1,1776.9,1776.8,5.62809]
[1743765750489,6.05998,1777.1,1776.9,5.62751]
[1743765751193,6.05998,1777.1,1777.0,5.62746]
[1743765751404,6.099,1777.2,1777.0,5.62746]
[1743765751575,6.099,1777.4,1777.2,5.62653]
[1743765751773,6.099,1777.4,1777.3,5.62651]
[1743765753103,6.099,1777.4,1777.2,6.45223]
[1743765753279,6.099,1777.4,1777.0,0.8289]
[1743765753598,6.099,1777.4,1777.1,5.62713]
[1743765753798,6.099,1777.4,1777.2,5.62682]
[1743765755893,5.62699,1777.2,1776.8,6.44434]
[1743765756202,5.62652,1777.3,1777.0,5.62731]
[1743765756416,5.62652,1777.3,1776.9,5.6276]
[1743765756974,5.62684,1777.2,1776.9,5.6276]
[1743765757884,5.62669,1777.3,1776.9,5.6276]
[1743765758087,6.099,1777.4,1776.8,6.85903486]
[1743765758288,5.62699,1777.2,1776.8,6.85887486]
[1743765758496,5.62699,1777.2,1776.9,5.62777]
[1743765759077,5.62699,1777.2,1776.9,5.62768]
[1743765759078,5.62684,1777.2,1776.9,5.62768]
[1743765759535,5.62652,1777.3,1776.9,5.62764]
[1743765759667,5.62683,1777.2,1776.9,5.62764]
[1743765759872,5.62714,1777.1,1776.8,6.44444]
[1743765760095,5.62683,1777.2,1776.9,5.62776]
[1743765760483,11.25383,1777.2,1776.9,5.62776]
[1743765760692,5.62674,1777.3,1776.9,5.62776]
[1743765760872,6.095,1777.2,1776.9,5.62767]
[1743765761074,6.095,1777.2,1776.9,11.25534]
[1743765761305,6.095,1777.2,1776.9,11.25533]
[1743765761483,11.72193,1777.2,1776.8,6.44438]
[1743765761684,5.6272,1777.1,1776.8,6.44438]
[1743765761885,1.2713,1777.1,1776.6,0.8257]
[1743765762076,5.62896,1776.6,1776.4,0.8257]
[1743765762275,5.62896,1776.6,1776.3,5.62954]
[1743765762276,5.62896,1776.6,1776.3,11.25912]
[1743765762609,6.095,1776.8,1776.6,11.257]
[1743765762912,5.62848,1776.7,1776.4,5.62925]
[1743765763083,5.62848,1776.7,1776.3,11.25917]
[1743765763285,5.62873,1776.6,1776.3,6.838037]
[1743765763503,11.7231,1776.8,1776.3,1.208487]
[1743765763708,6.095,1776.8,1776.6,6.40508]
[1743765764024,6.17957874,1777.0,1776.8,5.62793]
[1743765764681,6.17957874,1777.0,1776.8,11.25591]
[1743765764879,6.05998,1777.1,1776.9,5.62777]
[1743765764880,12.15498,1777.1,1776.9,5.62777]
[1743765765192,12.15498,1777.1,1776.9,5.62763]
[1743765765771,6.095,1777.1,1776.9,11.2553]
[1743765766004,6.095,1777.1,1776.9,6.75315]
[1743765766211,6.095,1777.1,1776.9,11.25527]
[1743765766507,6.095,1777.1,1776.9,5.62776]
[1743765766825,6.095,1777.1,1776.9,11.2554]
[1743765767109,6.095,1777.1,1776.9,5.62764]
[1743765767512,6.095,1777.1,1777.0,5.62746]
[1743765768807,6.095,1777.1,1776.8,5.628]
[1743765768808,11.72222,1777.1,1776.8,5.628]
[1743765769002,11.72222,1777.1,1776.8,11.25598]
[1743765769199,6.095,1777.1,1777.0,5.62746]
[1743765769408,0.55,1777.4,1777.2,5.62672]
[1743765769584,6.094,1777.4,1777.1,11.25407]
[1743765769780,6.094,1777.4,1777.3,5.62651]
[1743765769986,8.62529,1777.7,1777.4,5.62619]
[1743765770313,6.093,1777.6,1777.4,5.62611]
[1743765770486,11.7186,1777.6,1777.3,5.62641]
[1743765770681,6.34634,1777.8,1777.4,0.8173]
[1743765770915,6.10998,1777.9,1777.6,5.6253]
[1743765771102,5.62493,1777.8,1777.5,5.62584]
[1743765771305,5.62633,1777.4,1776.9,4.56219684]
[1743765771512,5.62633,1777.4,1777.0,5.62735]
[1743765771704,5.62633,1777.4,1777.1,5.62714]
[1743765772086,11.25268,1777.4,1777.0,11.25471]
[1743765772336,11.71892,1777.5,1777.1,5.62693]
[1743765772505,6.093,1777.5,1777.2,5.62662]
[1743765773017,5.62633,1777.4,1777.1,5.62707]
[1743765773313,6.093,1777.6,1777.3,5.62626]
[1743765773712,6.093,1777.6,1777.2,0.788]
[1743765773896,6.093,1777.6,1777.3,5.62637]
[1743765774094,6.093,1777.6,1777.0,5.62739]
[1743765774095,5.62629,1777.4,1777.0,5.62739]
[1743765774305,6.34791,1777.3,1776.9,0.8121]
[1743765774478,3.55,1777.5,1776.9,0.8121]
[1743765774678,5.6263,1777.4,1777.1,5.62713]
[1743765774916,11.25277,1777.4,1777.0,5.62723]
[1743765775102,0.55,1777.3,1777.0,11.25457]
[1743765775414,0.55,1777.3,1777.0,11.25458]
[1743765775612,0.55,1777.3,1777.1,5.62711]
[1743765775920,0.55,1777.3,1777.1,5.62705]
[1743765776824,0.55,1777.3,1777.0,5.62735]
[1743765776983,0.55,1777.3,1777.0,11.2547]
[1743765777378,0.55,1777.3,1777.1,5.62714]
[1743765777824,6.3472,1777.5,1777.2,5.62674]
[1743765778125,0.55,1777.4,1777.0,5.62738]
[1743765778284,5.62654,1777.3,1777.0,5.6273]
[1743765778481,11.80286,1777.4,1777.0,5.6273]
[1743765778683,6.17636,1777.4,1777.1,5.62713]
[1743765779117,5.62676,1777.3,1776.9,12.06762]
[1743765779313,5.62673,1777.3,1777.0,5.62745]
[1743765779500,5.62701,1777.2,1776.8,5.62795]
[1743765779703,5.62772,1777.0,1776.7,0.7674]
[1743765779901,1.2713,1777.1,1776.5,1.18840467]
[1743765780095,6.89854,1777.1,1776.7,5.62824]
[1743765780301,5.6275,1777.0,1776.7,5.62824]
[1743765780516,12.52598,1777.1,1776.7,11.25654]
[1743765780721,12.52598,1777.1,1776.7,5.62824]
[1743765781021,6.89854,1777.1,1776.8,5.62795]
[1743765781219,6.89854,1777.1,1776.5,0.7674]
[1743765781220,6.89845,1777.1,1776.5,0.7674]
[1743765781393,5.62851,1776.7,1776.4,5.62925]
[1743765781597,6.64,1776.8,1776.3,5.62965]
[1743765781800,5.62854,1776.7,1776.3,5.62965]
[1743765781986,5.62884,1776.6,1776.2,5.62996]
[1743765782192,5.62884,1776.6,1776.2,5.62982]
[1743765782401,5.62854,1776.7,1776.3,11.25893]
[1743765782605,5.62854,1776.7,1776.4,5.62931]
[1743765782814,5.62874,1776.6,1776.3,5.62945]
[1743765783220,11.2577,1776.6,1776.2,6.268112]
[1743765783417,6.17954,1776.4,1776.0,6.756589]
[1743765783624,5.62982,1776.3,1775.9,5.63093]
[1743765783922,5.62982,1776.3,1775.9,11.26155]
[1743765784123,5.62982,1776.3,1775.9,5.63076]
[1743765784304,11.25969,1776.3,1775.9,5.63076]
[1743765784692,5.62982,1776.3,1776.0,5.6306]
[1743765784899,6.64,1776.4,1776.1,5.63016]
[1743765785094,5.62992,1776.3,1775.7,1.24362669]
[1743765785305,6.78128,1776.6,1776.3,5.62967]
[1743765785517,6.089,1776.6,1776.3,5.62967]
[1743765785705,6.089,1776.6,1776.4,5.62935]
[1743765785906,12.43942,1776.8,1776.4,5.62935]
[1743765786129,5.62852,1776.7,1776.3,5.62962]
[1743765786335,6.8113,1776.8,1776.5,5.62903]
[1743765786530,6.8113,1776.8,1776.5,5.62893]
[1743765786837,6.8113,1776.8,1776.5,5.62891]
[1743765787039,6.8113,1776.8,1776.5,5.62888]
[1743765787214,12.43957,1776.8,1776.4,5.62926]
[1743765787415,5.62857,1776.7,1776.3,5.62967]
[1743765787614,11.25789,1776.6,1776.2,5.62988]
[1743765787833,5.62886,1776.6,1776.2,11.25973]
[1743765788029,5.62905,1776.5,1776.2,5.62985]
[1743765788207,6.05998,1776.9,1776.1,4.50320877]
[1743765788407,0.80587874,1777.0,1775.9,3.0]
[1743765788408,6.05998,1777.1,1776.8,5.62788]
[1743765788707,6.05998,1777.1,1776.9,5.62773]
[1743765788919,6.05998,1777.1,1776.9,5.62766]
[1743765789126,0.55,1777.0,1776.5,5.629]
[1743765789314,6.05998,1777.1,1777.0,5.62746]
[1743765789645,12.43815,1777.2,1776.9,5.62764]
[1743765789807,6.8113,1777.2,1777.0,5.62741]
[1743765790155,6.8113,1777.2,1777.0,5.62735]
[1743765790320,6.09,1777.2,1777.1,5.62714]
[1743765790526,12.87128,1777.4,1777.2,11.25336]
[1743765790705,11.25136,1777.6,1777.2,6.44755]
[1743765790706,11.97266,1777.6,1777.2,6.44755]
[1743765790911,6.089,1777.5,1777.3,5.62648]
[1743765791216,0.7213,1777.2,1776.7,0.7662]
[1743765791417,11.71625,1777.1,1776.7,6.3945]
[1743765791608,6.089,1777.1,1776.8,5.62805]
[1743765791813,11.71627,1777.1,1776.7,5.6283]
[1743765792032,11.25516,1777.0,1776.6,5.62872]
[1743765792234,5.6279,1776.9,1776.5,6.38771]
[1743765792458,0.55,1776.9,1776.5,0.7588]
[1743765792611,0.55,1776.9,1776.6,5.6285]
[1743765792811,0.55,1776.9,1776.5,6.38778]
[1743765792812,6.089,1776.8,1776.5,6.38778]
[1743765793009,0.55,1776.9,1776.5,0.7588]
[1743765793219,6.089,1776.8,1776.5,6.38779]
[1743765793424,11.71712,1776.8,1776.5,6.38779]
[1743765793739,6.089,1776.8,1776.5,6.38774]
[1743765794240,5.62875,1776.6,1776.2,5.62989]
[1743765794451,5.62841,1776.7,1776.2,5.62989]
[1743765794629,5.62891,1776.6,1776.2,5.62989]
[1743765794821,5.62891,1776.6,1776.2,5.62984]
[1743765795022,11.25785,1776.6,1776.2,5.62984]
[1743765795208,1.2713,1776.8,1776.2,5.62999]
[1743765795407,6.088,1776.7,1776.2,5.62997]
[1743765795607,6.088,1776.8,1776.6,5.62862]
[1743765795938,6.088,1776.8,1776.5,6.40402]
[1743765796109,11.71616,1776.8,1776.5,6.40402]
[1743765796310,5.62885,1776.6,1776.3,0.7603]
[1743765796539,11.25697,1776.7,1776.3,6.38997]
[1743765796727,5.62841,1776.7,1776.3,12.01951]
[1743765796929,0.55,1776.7,1776.4,5.6292]
[1743765797141,11.71611,1776.8,1776.4,5.62917]
[1743765797816,6.088,1776.8,1776.5,5.62893]
[1743765798037,6.088,1776.8,1776.5,5.6289]
[1743765798236,11.71622,1776.8,1776.5,5.6289]
[1743765798544,6.088,1776.8,1776.5,5.62889]
[1743765798720,6.088,1776.8,1776.5,11.25777]
[1743765799125,11.7162,1776.8,1776.5,5.62888]
[1743765799323,6.34987,1776.7,1776.3,5.62956]
[1743765799738,6.34987,1776.7,1776.3,11.2591]
[1743765800046,6.34987,1776.7,1776.4,5.62935]
[1743765800341,12.14798,1777.0,1776.7,5.62823]
[1743765800546,5.62791,1776.9,1776.6,5.6287]
[1743765800842,5.62791,1776.9,1776.5,5.62893]
[1743765801049,17.77547,1777.0,1776.6,5.6287]
[1743765801341,12.14798,1777.0,1776.7,5.62838]
[1743765801650,11.25608,1776.9,1776.5,5.6289]
[1743765802144,6.05998,1777.0,1776.8,5.6278]
[1743765802349,12.14798,1777.0,1776.9,5.62777]
[1743765802644,0.09984745,1777.4,1776.8,5.6278]
[1743765802645,6.15982745,1777.4,1776.8,6.4375]
[1743765802851,6.15982745,1777.4,1777.0,5.62724]
[1743765802852,6.088,1777.1,1777.0,5.62724]
[1743765803220,17.41254745,1777.4,1776.8,0.8097]
[1743765803221,6.15982745,1777.4,1777.1,5.62706]
[1743765803546,6.087,1777.3,1777.2,11.25335]
[1743765804053,11.71365,1777.3,1776.9,6.44956]
[1743765804247,6.8083,1777.3,1777.0,5.62728]
[1743765804433,6.087,1777.3,1777.0,5.62728]
[1743765804636,6.087,1777.3,1777.1,5.62702]
[1743765804815,11.71361,1777.3,1777.0,5.62741]
[1743765805019,0.7213,1777.2,1776.8,5.62801]
[1743765805216,6.34824,1777.2,1776.9,5.62766]
[1743765805438,6.087,1777.3,1777.0,5.62744]
[1743765805918,5.62687,1777.2,1776.9,5.62773]
[1743765806530,17.34048,1777.3,1776.9,11.25535]
[1743765806726,11.71369,1777.3,1777.0,5.62741]
[1743765807019,6.087,1777.3,1777.0,5.62733]
[1743765807218,11.71351,1777.3,1777.0,5.62733]
[1743765807452,11.71351,1777.3,1776.9,11.25552]
[1743765807814,17.34021,1777.3,1776.9,11.25552]
[1743765808019,17.34022,1777.3,1776.9,11.25552]
[1743765808354,17.34022,1777.3,1776.9,5.62776]
[1743765808558,11.71351,1777.3,1777.0,5.62735]
[1743765808732,6.087,1777.3,1777.1,5.62711]
[1743765809432,6.087,1777.3,1777.0,6.44724]
[1743765809742,6.087,1777.3,1777.1,5.62692]
[1743765809924,6.15982745,1777.4,1777.2,5.62682]
[1743765810128,6.18484745,1777.4,1777.3,5.62651]
[1743765810530,0.05,1777.9,1777.7,5.62505]
[1743765810938,0.05,1777.9,1777.8,5.62492]
[1743765811255,0.05,1777.9,1777.8,6.40342]
[1743765812846,0.05,1777.9,1777.8,10.0906734]
[1743765815669,0.05,1777.9,1777.8,13.0906734]
[1743765816461,0.05,1777.9,1777.8,9.40342]
[1743765816766,0.05,1777.9,1777.8,8.05992293]
[1743765817378,0.05,1777.9,1777.8,5.62492]
[1743765817786,0.05,1777.9,1777.7,6.750106]
[1743765817948,0.05,1777.9,1777.8,5.62492]
[1743765818288,0.05,1777.9,1777.6,12.00702]
[1743765818444,0.05,1777.9,1777.6,11.25078]
[1743765818639,0.05,1777.9,1777.5,0.42655607]
[1743765818640,6.34634,1777.8,1777.5,0.42655607]
[1743765818873,11.97157,1777.8,1777.5,0.42655607]
[1743765819047,5.62532,1777.7,1777.5,0.42655607]
[1743765819572,5.62528,1777.7,1777.3,11.25269]
[1743765819774,11.25071,1777.7,1777.3,11.25274]
[1743765819952,5.62597,1777.5,1777.2,5.62672]
[1743765820146,11.70697,1777.5,1777.2,5.62672]
[1743765820462,17.33303,1777.5,1777.1,5.6271]
[1743765820842,11.70706,1777.5,1777.1,5.6271]
[1743765821038,11.70706,1777.5,1777.1,11.25411]
[1743765821239,11.70706,1777.5,1777.0,6.272044]
[1743765821240,1.2713,1777.4,1777.0,6.272044]
[1743765821478,6.89779,1777.4,1777.0,11.899404]
[1743765821677,6.89779,1777.4,1777.0,6.272044]
[1743765821969,12.52428,1777.4,1777.0,6.272044]
[1743765822173,0.7213,1777.4,1777.2,5.62674]
[1743765822378,6.081,1777.6,1777.4,5.62609]
[1743765822542,11.70669,1777.6,1777.2,5.62674]
[1743765822751,17.33253,1777.6,1777.2,5.62665]
[1743765822956,11.70669,1777.6,1777.2,11.894385]
[1743765823159,6.081,1777.6,1777.3,5.62649]
[1743765823403,6.081,1777.6,1777.4,5.62605]
[1743765823703,6.081,1777.6,1777.4,5.62603]
[1743765823874,6.081,1777.6,1777.4,6.751281]
[1743765824206,6.081,1777.6,1777.5,5.62587]
[1743765824558,6.081,1777.6,1777.4,11.25211]
[1743765824757,6.081,1777.6,1777.5,5.62587]
[1743765825065,12.14098,1777.8,1777.5,6.39171]
[1743765825278,12.14098,1777.8,1777.5,12.01748]